fUSD/lending_fUSD_20240404
["ID","MTS","AMOUNT","RATE_DAILY","PERIOD"]
[321455534,1712200266669,-502.86411158,0.00054794,120]
[321455535,1712200266678,-504.60851928,0.00054794,120]
[321455536,1712200266688,-505.19611877,0.00054794,120]
[321455537,1712200266697,-641.5700854,0.00054794,120]
[321455538,1712200266706,-500.0,0.00054794,120]
[321455539,1712200266716,-500.0,0.00054794,120]
[321455540,1712200266725,-681.87,0.00054794,120]
[321455541,1712200266735,-507.88401631,0.00054794,120]
[321455542,1712200266744,-464.92408481,0.00054794,120]
[321455543,1712200266753,-500.0,0.00054794,120]
[321455544,1712200266763,-500.0,0.00054794,120]
[321455545,1712200266773,-500.0,0.00054794,120]
[321455546,1712200266782,-500.0,0.00054794,120]
[321455547,1712200266792,-500.0,0.00054794,120]
[321455548,1712200266802,-502.56882314,0.00054794,120]
[321455549,1712200266814,-508.09540507,0.00054794,120]
[321455550,1712200266824,-723.7,0.00054794,120]
[321455551,1712200266835,-512.47459199,0.00054794,120]
[321455552,1712200266848,-728.77,0.00054794,120]
[321455553,1712200266858,-500.0,0.00054794,120]
[321455554,1712200266867,-500.0,0.00054794,120]
[321455555,1712200266877,-500.0,0.00054794,120]
[321455556,1712200266887,-500.0,0.00054794,120]
[321455557,1712200266896,-500.0,0.00054794,120]
[321455558,1712200266906,-500.0,0.00054794,120]
[321455559,1712200266916,-500.0,0.00054794,120]
[321455560,1712200266925,-584.05,0.00054794,120]
[321455561,1712200266935,-512.07119527,0.00054794,120]
[321455562,1712200266945,-500.0,0.00054794,120]
[321455563,1712200266955,-974.99,0.00054794,120]
[321455564,1712200266964,-500.0,0.00054794,120]
[321455565,1712200266974,-554.41690692,0.00054794,120]
[321455566,1712200266984,-500.0,0.00054794,120]
[321455567,1712200266994,-500.0,0.00054794,120]
[321455568,1712200267004,-511.66762442,0.00054794,120]
[321455569,1712200267013,-153.664535,0.00054794,120]
[321455570,1712200267023,-500.0,0.00054794,120]
[321455571,1712200267032,-518.58514599,0.00054794,120]
[321455572,1712200267042,-500.0,0.00054794,120]
[321455573,1712200267051,-505.88034902,0.00054794,120]
[321455574,1712200267062,-500.0,0.00054794,120]
[321455575,1712200267071,-500.0,0.00054794,120]
[321455576,1712200267081,-500.0,0.00054794,120]
[321455577,1712200267090,-500.0,0.00054794,2]
[321455578,1712200267101,-500.0,0.00054794,120]
[321455579,1712200267111,-151.0,0.00054794,120]
[321455580,1712200267120,-500.0,0.00054794,120]
[321455581,1712200267130,-500.0,0.00054794,120]
[321455582,1712200267141,-500.0,0.00054794,120]
[321455583,1712200267151,-511.53893896,0.00054794,120]
[321455584,1712200267161,-200.0,0.00054794,10]
[321455585,1712200267171,-500.0,0.00054794,120]
[321455586,1712200267181,-500.0,0.00054794,120]
[321455587,1712200267190,-151.0,0.00054794,120]
[321455588,1712200267200,-500.0,0.00054794,120]
[321455589,1712200267210,-578.06,0.00054794,120]
[321455590,1712200267220,-618.09,0.00054794,120]
[321455591,1712200267229,-511.50160768,0.00054794,120]
[321455592,1712200267239,-506.5585151,0.00054794,120]
[321455593,1712200267249,-500.0,0.00054794,120]
[321455594,1712200267258,-500.0,0.00054794,120]
[321455595,1712200267268,-577.38987168,0.00054794,120]
[321455596,1712200267277,-516.72742246,0.00054794,120]
[321455597,1712200267287,-508.01882165,0.00054794,120]
[321455598,1712200267296,-500.0,0.00054794,120]
[321455599,1712200267306,-500.0,0.00054794,120]
[321455600,1712200267319,-500.0,0.00054794,120]
[321455601,1712200267328,-500.0,0.00054794,120]
[321455602,1712200267338,-515.21921932,0.00054794,120]
[321455603,1712200267347,-500.0,0.00054794,120]
[321455604,1712200267356,-500.0,0.00054794,2]
[321455605,1712200267366,-435.80249703,0.00054794,2]
[321455606,1712200267375,-500.0,0.00054794,120]
[321455607,1712200267385,-500.0,0.00054794,120]
[321455608,1712200267394,-500.0,0.00054794,120]
[321455609,1712200267404,-516.66569155,0.00054794,120]
[321455610,1712200267414,-500.0,0.00054794,120]
[321455611,1712200267423,-500.0,0.00054794,120]
[321455612,1712200267432,-507.43864774,0.00054794,120]
[321455613,1712200267442,-500.0,0.00054794,120]
[321455614,1712200267451,-500.0,0.00054794,120]
[321455615,1712200267461,-539.8,0.00054794,120]
[321455616,1712200267470,-500.0,0.00054794,120]
[321455617,1712200267479,-526.04323403,0.00054794,120]
[321455618,1712200267489,-500.0,0.00054794,120]
[321455619,1712200267498,-500.0,0.00054794,120]
[321455620,1712200267507,-500.0,0.00054794,120]
[321455621,1712200267516,-500.0,0.00054794,120]
[321455622,1712200267526,-500.0,0.00054794,120]
[321455623,1712200267535,-154.903266,0.00054794,120]
[321455624,1712200267544,-511.99094188,0.00054794,120]
[321455625,1712200267554,-500.0,0.00054794,120]
[321455626,1712200267565,-500.0,0.00054794,120]
[321455627,1712200267575,-500.0,0.00054794,120]
[321455628,1712200267584,-500.0,0.00054794,120]
[321455629,1712200267594,-511.34368876,0.00054794,120]
[321455630,1712200267603,-560.72,0.00054794,120]
[321455631,1712200267613,-522.22346289,0.00054794,120]
[321455632,1712200267622,-500.0,0.00054794,120]
[321455633,1712200267631,-151.0,0.00054794,120]
[321455634,1712200267641,-500.0,0.00054794,120]
[321455635,1712200267650,-580.11,0.00054794,120]
[321455636,1712200267659,-580.11,0.00054794,120]
[321455637,1712200267668,-500.0,0.00054794,120]
[321455638,1712200267677,-580.11,0.00054794,120]
[321455639,1712200267687,-500.0,0.00054794,2]
[321455640,1712200267696,-580.11,0.00054794,120]
[321455641,1712200267705,-675.6,0.00054794,120]
[321455642,1712200267715,-580.11,0.00054794,120]
[321455643,1712200267724,-580.11,0.00054794,120]
[321455644,1712200267734,-500.0,0.00054794,120]
[321455645,1712200267743,-580.11,0.00054794,120]
[321455646,1712200267753,-580.11,0.00054794,120]
[321455647,1712200267763,-580.11,0.00054794,120]
[321455648,1712200267773,-500.0,0.00054794,120]
[321455649,1712200267782,-580.11,0.00054794,120]
[321455650,1712200267791,-580.11,0.00054794,120]
[321455651,1712200267800,-580.11,0.00054794,120]
[321455652,1712200267811,-580.11,0.00054794,120]
[321455653,1712200267821,-580.11,0.00054794,120]
[321455654,1712200267830,-580.11,0.00054794,120]
[321455655,1712200267841,-500.0,0.00054794,120]
[321455656,1712200267853,-580.11,0.00054794,120]
[321455657,1712200267863,-580.11,0.00054794,120]
[321455658,1712200267873,-580.11,0.00054794,120]
[321455659,1712200267883,-580.11,0.00054794,120]
[321455660,1712200267893,-580.11,0.00054794,120]
[321455661,1712200267902,-500.0,0.00054794,120]
[321455662,1712200267913,-500.0,0.00054794,120]
[321455663,1712200267923,-580.11,0.00054794,120]
[321455664,1712200267934,-580.11,0.00054794,120]
[321455665,1712200267944,-580.11,0.00054794,120]
[321455666,1712200267953,-580.12252329,0.00054794,120]
[321455667,1712200267963,-500.0,0.00054794,120]
[321455668,1712200267973,-500.0,0.00054794,120]
[321455669,1712200267983,-500.0,0.00054794,120]
[321455670,1712200267992,-500.0,0.00054794,120]
[321455671,1712200268002,-674.64,0.00054794,120]
[321455672,1712200268013,-532.24,0.00054794,120]
[321455673,1712200268023,-500.0,0.00054794,120]
[321455674,1712200268034,-151.0,0.00054794,120]
[321455675,1712200268131,-506.07921373,0.00054794,120]
[321455676,1712200268141,-500.0,0.00054794,120]
[321455677,1712200268150,-500.0,0.00054794,120]
[321455678,1712200268160,-500.0,0.00054794,120]
[321455679,1712200268170,-507.62393873,0.00054794,120]
[321455680,1712200268179,-500.0,0.00054794,120]
[321455681,1712200268188,-516.68603271,0.00054794,120]
[321455682,1712200268198,-500.0,0.00054794,120]
[321455683,1712200268207,-500.0,0.00054794,120]
[321455684,1712200268216,-500.0,0.00054794,120]
[321455685,1712200268225,-518.08,0.00054794,120]
[321455686,1712200268234,-500.0,0.00054794,120]
[321455687,1712200268244,-504.82858787,0.00054794,120]
[321455688,1712200268254,-151.0,0.00054794,120]
[321455689,1712200268266,-518.49222263,0.00054794,120]
[321455690,1712200268287,-508.29578167,0.00054794,120]
[321455691,1712200268307,-515.71615796,0.00054794,120]
[321455692,1712200268330,-813.48,0.00054794,120]
[321455693,1712200268354,-500.0,0.00054794,120]
[321455694,1712200268377,-500.0,0.00054794,120]
[321455695,1712200268401,-641.13194977,0.00054794,120]
[321455696,1712200268422,-500.0,0.00054794,120]
[321455697,1712200268433,-500.0,0.00054794,120]
[321455698,1712200268442,-631.14,0.00054794,120]
[321455699,1712200268451,-500.0,0.00054794,120]
[321455700,1712200268461,-500.0,0.00054794,120]
[321455701,1712200268471,-500.0,0.00054794,120]
[321455702,1712200268480,-500.0,0.00054794,120]
[321455703,1712200268490,-500.0,0.00054794,120]
[321455704,1712200268499,-500.0,0.00054794,120]
[321455705,1712200268508,-517.57649914,0.00054794,120]
[321455706,1712200268517,-151.0,0.00054794,120]
[321455707,1712200268526,-519.42684758,0.00054794,120]
[321455708,1712200268536,-500.0,0.00054794,120]
[321455709,1712200268545,-500.0,0.00054794,120]
[321455710,1712200268554,-500.0,0.00054794,120]
[321455711,1712200268564,-500.0,0.00054794,120]
[321455712,1712200268573,-151.0,0.00054794,120]
[321455713,1712200268582,-488.34447123,0.00054794,120]
[321455714,1712200268590,-521.68413675,0.00054794,120]
[321455715,1712200268599,-797.4,0.00054794,120]
[321455716,1712200268608,-500.0,0.00054794,120]
[321455717,1712200268617,-500.0,0.00054794,120]
[321455718,1712200268625,-500.0,0.00054794,120]
[321455719,1712200268634,-509.91727692,0.00054794,120]
[321455720,1712200268643,-151.0,0.00054794,120]
[321455721,1712200268651,-961.27,0.00054794,120]
[321455722,1712200268660,-500.0,0.00054794,120]
[321455723,1712200268668,-658.74,0.00054794,120]
[321455724,1712200268677,-818.65,0.00054794,120]
[321455725,1712200268686,-151.0,0.00054794,120]
[321455726,1712200268694,-752.9,0.00054794,120]
[321455727,1712200268703,-537.52145048,0.00054794,120]
[321455728,1712200268712,-287.33455415,0.00054794,120]
[321455729,1712200268721,-500.0,0.00054794,120]
[321455730,1712200268729,-151.0,0.00054794,120]
[321455731,1712200268738,-500.0,0.00054794,2]
[321455732,1712200268747,-539.48,0.00054794,120]
[321455733,1712200268755,-500.0,0.00054794,120]
[321455734,1712200268764,-500.0,0.00054794,120]
[321455735,1712200268773,-503.41698682,0.00054794,120]
[321455736,1712200268782,-500.0,0.00054794,120]
[321455737,1712200268790,-500.0,0.00054794,120]
[321455738,1712200268799,-515.1950196,0.00054794,120]
[321455739,1712200268808,-500.0,0.00054794,120]
[321455740,1712200268817,-500.0,0.00054794,120]
[321455741,1712200268826,-2000.0,0.00054794,120]
[321455742,1712200268835,-500.0,0.00054794,120]
[321455743,1712200268844,-500.0,0.00054794,120]
[321455744,1712200268856,-564.92799941,0.00054794,120]
[321455745,1712200268866,-500.0,0.00054794,120]
[321455746,1712200268875,-500.0,0.00054794,120]
[321455747,1712200268883,-500.0,0.00054794,120]
[321455748,1712200268893,-500.0,0.00054794,120]
[321455749,1712200268902,-543.39601668,0.00054794,120]
[321455750,1712200268911,-500.0,0.00054794,120]
[321455751,1712200268920,-500.0,0.00054794,120]
[321455752,1712200268930,-521.34914222,0.00054794,120]
[321455753,1712200268940,-151.0,0.00054794,120]
[321455754,1712200268949,-517.85396345,0.00054794,120]
[321455755,1712200268958,-556.16316204,0.00054794,120]
[321455756,1712200268968,-500.0,0.00054794,120]
[321455757,1712200268977,-500.0,0.00054794,120]
[321455758,1712200268987,-500.0,0.00054794,120]
[321455759,1712200268997,-1653.33,0.00054794,2]
[321455760,1712200269006,-445.41160354,0.00054794,120]
[321455761,1712200269015,-259.233093,0.00054794,7]
[321455762,1712200269024,-500.0,0.00054794,120]
[321455763,1712200269033,-259.233093,0.00054794,7]
[321455764,1712200269042,-500.0,0.00054794,120]
[321455765,1712200269052,-500.0,0.00054794,15]
[321455766,1712200269062,-500.0,0.00054794,120]
[321455767,1712200269071,-735.54,0.00054794,120]
[321455768,1712200269081,-510.53308447,0.00054794,120]
[321455769,1712200269090,-500.0,0.00054794,120]
[321455770,1712200269099,-500.0,0.00054794,120]
[321455771,1712200269109,-500.0,0.00054794,120]
[321455772,1712200269118,-500.0,0.00054794,120]
[321455773,1712200269127,-500.0,0.00054794,120]
[321455774,1712200269136,-600.0,0.00054794,2]
[321455775,1712200269146,-543.89474447,0.00054794,120]
[321455776,1712200269155,-676.77,0.00054794,120]
[321455777,1712200269164,-500.0,0.00054794,120]
[321455778,1712200269173,-352.09146992,0.00054794,120]
[321455779,1712200269183,-919.9,0.00054794,120]
[321455780,1712200269192,-507.74661043,0.00054794,120]
[321455781,1712200269201,-500.0,0.00054794,120]
[321455782,1712200269210,-500.0,0.00054794,120]
[321455783,1712200269219,-500.0,0.00054794,120]
[321455784,1712200269228,-500.0,0.00054794,120]
[321455785,1712200269237,-500.0,0.00054794,120]
[321455786,1712200269246,-562.41206154,0.00054794,120]
[321455787,1712200269255,-573.69,0.00054794,120]
[321455788,1712200269264,-703.82,0.00054794,120]
[321455789,1712200269273,-500.0,0.00054794,120]
[321455790,1712200269285,-500.0,0.00054794,120]
[321455791,1712200269294,-500.0,0.00054794,120]
[321455792,1712200269303,-151.0,0.00054794,120]
[321455793,1712200269313,-1029.43,0.00054794,120]
[321455794,1712200269322,-500.0,0.00054794,120]
[321455795,1712200269331,-518.06448733,0.00054794,120]
[321455796,1712200269340,-500.0,0.00054794,120]
[321455797,1712200269349,-500.0,0.00054794,120]
[321455798,1712200269357,-500.0,0.00054794,120]
[321455799,1712200269366,-875.1,0.00054794,120]
[321455800,1712200269375,-512.34563538,0.00054794,120]
[321455801,1712200269384,-500.0,0.00054794,120]
[321455802,1712200269393,-151.0,0.00054794,120]
[321455803,1712200269403,-500.0,0.00054794,120]
[321455804,1712200269412,-514.35052322,0.00054794,120]
[321455805,1712200269421,-2209.07,0.00054794,120]
[321455806,1712200269431,-500.0,0.00054794,120]
[321455807,1712200269440,-521.54122195,0.00054794,120]
[321455808,1712200269449,-154.026777,0.00054794,120]
[321455809,1712200269458,-512.46101032,0.00054794,120]
[321455810,1712200269467,-526.32338866,0.00054794,120]
[321455811,1712200269476,-500.0,0.00054794,120]
[321455812,1712200269486,-527.47111755,0.00054794,120]
[321455813,1712200269494,-500.0,0.00054794,120]
[321455814,1712200269503,-500.0,0.00054794,120]
[321455815,1712200269512,-513.13367788,0.00054794,120]
[321455816,1712200269522,-705.27,0.00054794,120]
[321455817,1712200269531,-500.0,0.00054794,120]
[321455818,1712200269540,-442.43020677,0.00054794,120]
[321455819,1712200269549,-751.57,0.00054794,120]
[321455820,1712200269561,-500.0,0.00054794,120]
[321455821,1712200269571,-1008.2,0.00054794,120]
[321455822,1712200269580,-500.0,0.00054794,120]
[321455823,1712200269589,-2122.58,0.00054794,120]
[321455824,1712200269598,-500.0,0.00054794,120]
[321455825,1712200269607,-1103.16,0.00054794,120]
[321455826,1712200269616,-514.46,0.00054794,120]
[321455827,1712200269625,-929.17,0.00054794,120]
[321455828,1712200269633,-151.0,0.00054794,120]
[321455829,1712200269642,-522.40613277,0.00054794,120]
[321455830,1712200269651,-1658.5,0.00054794,30]
[321455831,1712200269660,-500.0,0.00054794,120]
[321455832,1712200269669,-3000.0,0.00054794,120]
[321455833,1712200269678,-500.0,0.00054794,120]
[321455834,1712200269687,-668.56,0.00054794,120]
[321455835,1712200269696,-551.99876956,0.00054794,120]
[321455836,1712200269705,-1348.04,0.00054794,120]
[321455837,1712200269714,-500.0,0.00054794,120]
[321455838,1712200269723,-167.90568986,0.00054794,120]
[321455839,1712200269732,-500.0,0.00054794,120]
[321455840,1712200269740,-517.25148326,0.00054794,120]
[321455841,1712200269749,-510.09323638,0.00054794,120]
[321455842,1712200269758,-1849.99,0.00054794,120]
[321455843,1712200269768,-500.0,0.00054794,120]
[321455844,1712200269777,-500.0,0.00054794,120]
[321455845,1712200269786,-500.0,0.00054794,120]
[321455846,1712200269794,-1432.04,0.00054794,120]
[321455847,1712200269803,-500.0,0.00054794,120]
[321455848,1712200269814,-938.115971,0.00054794,120]
[321455849,1712200269823,-509.61,0.00054794,120]
[321455850,1712200269832,-510.92310175,0.00054794,2]
[321455851,1712200269842,-500.0,0.00054794,120]
[321455852,1712200269852,-1003.87096317,0.00054794,2]
[321455853,1712200269862,-500.0,0.00054794,120]
[321455854,1712200269870,-1244.36,0.00054794,120]
[321455855,1712200269880,-520.21863992,0.00054794,120]
[321455856,1712200269889,-954.07,0.00054794,120]
[321455857,1712200269898,-555.61514506,0.00054794,120]
[321455858,1712200269907,-511.68975448,0.00054794,120]
[321455859,1712200269916,-1303.95,0.00054794,120]
[321455860,1712200269925,-523.14768251,0.00054794,120]
[321455861,1712200269935,-500.0,0.00054794,120]
[321455862,1712200269944,-500.0,0.00054794,120]
[321455863,1712200269953,-500.0,0.00054794,2]
[321455864,1712200269962,-513.21000195,0.00054794,120]
[321455865,1712200269971,-154.21819777,0.00054794,120]
[321455866,1712200269981,-1278.23,0.00054794,120]
[321455867,1712200269990,-500.0,0.00054794,120]
[321455868,1712200270000,-527.39518664,0.00054794,120]
[321455869,1712200270010,-518.43747165,0.00054794,120]
[321455870,1712200270020,-510.55507241,0.00054794,120]
[321455871,1712200270030,-706.05,0.00054794,120]
[321455872,1712200270040,-506.13191442,0.00054794,120]
[321455873,1712200270050,-508.98875705,0.00054794,120]
[321455874,1712200270061,-151.0,0.00054794,7]
[321455875,1712200270073,-516.96789667,0.00054794,120]
[321455876,1712200270082,-500.0,0.00054794,120]
[321455877,1712200270092,-500.0,0.00054794,120]
[321455878,1712200270102,-888.96,0.00054794,120]
[321455879,1712200270111,-1327.35,0.00054794,120]
[321455880,1712200270120,-500.0,0.00054794,120]
[321455881,1712200270129,-500.0,0.00054794,120]
[321455882,1712200270139,-260.473878,0.00054794,7]
[321455883,1712200270148,-540.54,0.00054794,120]
[321455884,1712200270157,-500.0,0.00054794,120]
[321455885,1712200270166,-500.0,0.00054794,120]
[321455886,1712200270175,-575.29,0.00054794,120]
[321455887,1712200270184,-1122.07,0.00054794,120]
[321455888,1712200270193,-500.0,0.00054794,120]
[321455889,1712200270202,-500.0,0.00054794,120]
[321455890,1712200270211,-515.39510926,0.00054794,120]
[321455891,1712200270221,-500.0,0.00054794,120]
[321455892,1712200270230,-500.0,0.00054794,120]
[321455893,1712200270239,-514.12456439,0.00054794,120]
[321455894,1712200270249,-1000.0,0.00054794,30]
[321455895,1712200270258,-1600.52,0.00054794,120]
[321455896,1712200270267,-151.0,0.00054794,120]
[321455897,1712200270276,-500.0,0.00054794,120]
[321455898,1712200270285,-500.0,0.00054794,120]
[321455899,1712200270298,-239.26081814,0.00054794,120]
[321455900,1712200270307,-500.0,0.00054794,120]
[321455901,1712200270319,-500.0,0.00054794,120]
[321455902,1712200270328,-500.0,0.00054794,120]
[321455903,1712200270338,-207.70924498,0.00054794,120]
[321455904,1712200270347,-527.77900755,0.00054794,120]
[321455905,1712200270356,-937.01,0.00054794,120]
[321455906,1712200270365,-547.0892318,0.00054794,120]
[321455907,1712200270374,-835.22,0.00054794,120]
[321455908,1712200270383,-500.0,0.00054794,120]
[321455909,1712200270392,-500.0,0.00054794,120]
[321455910,1712200270401,-500.0,0.00054794,120]
[321455911,1712200270410,-611.33,0.00054794,120]
[321455912,1712200270420,-500.0,0.00054794,120]
[321455913,1712200270430,-500.0,0.00054794,120]
[321455914,1712200270440,-500.0,0.00054794,120]
[321455915,1712200270450,-512.57380633,0.00054794,120]
[321455916,1712200270460,-151.0,0.00054794,120]
[321455917,1712200270469,-500.0,0.00054794,120]
[321455918,1712200270477,-500.0,0.00054794,120]
[321455919,1712200270486,-632.85,0.00054794,120]
[321455920,1712200270496,-500.0,0.00054794,120]
[321455921,1712200270507,-680.97,0.00054794,120]
[321455922,1712200270516,-475.90270182,0.00054794,120]
[321455923,1712200270525,-500.0,0.00054794,120]
[321455924,1712200270534,-500.0,0.00054794,120]
[321455925,1712200270543,-1000.0,0.00054794,60]
[321455926,1712200270552,-500.0,0.00054794,120]
[321455927,1712200270563,-1123.71,0.00054794,120]
[321455928,1712200270572,-500.0,0.00054794,120]
[321455929,1712200270580,-984.42,0.00054794,120]
[321455930,1712200270590,-500.0,0.00054794,120]
[321455931,1712200270599,-500.0,0.00054794,120]
[321455932,1712200270608,-500.0,0.00054794,120]
[321455933,1712200270618,-500.0,0.00054794,120]
[321455934,1712200270627,-500.0,0.00054794,120]
[321455935,1712200270636,-500.0,0.00054794,120]
[321455936,1712200270646,-1117.68,0.00054794,120]
[321455937,1712200270655,-510.9107829,0.00054794,120]
[321455938,1712200270665,-500.0,0.00054794,120]
[321455939,1712200270675,-500.0,0.00054794,120]
[321455940,1712200270683,-500.0,0.00054794,120]
[321455941,1712200270693,-1174.17,0.00054794,120]
[321455942,1712200270702,-500.0,0.00054794,120]
[321455943,1712200270710,-517.34665033,0.00054794,120]
[321455944,1712200270719,-871.46,0.00054794,120]
[321455945,1712200270728,-151.0,0.00054794,120]
[321455946,1712200270737,-500.0,0.00054794,120]
[321455947,1712200270747,-279.871932,0.00054794,14]
[321455948,1712200270756,-500.0,0.00054794,120]
[321455949,1712200270765,-522.33732458,0.00054794,120]
[321455950,1712200270775,-527.31075074,0.00054794,120]
[321455951,1712200270784,-510.30940513,0.00054794,120]
[321455952,1712200270794,-151.0,0.00054794,120]
[321455953,1712200270803,-508.12717287,0.00054794,120]
[321455954,1712200270814,-531.39151769,0.00054794,120]
[321455955,1712200270823,-1213.04,0.00054794,120]
[321455956,1712200270832,-500.0,0.00054794,120]
[321455957,1712200270842,-496.8394806,0.00054794,120]
[321455958,1712200270851,-500.0,0.00054794,120]
[321455959,1712200270863,-2563.86,0.00054794,120]
[321455960,1712200270872,-279.871932,0.00054794,14]
[321455961,1712200270881,-516.52433662,0.00054794,120]
[321455962,1712200270890,-506.14617597,0.00054794,120]
[321455963,1712200270900,-931.42,0.00054794,120]
[321455964,1712200270908,-516.8,0.00054794,120]
[321455965,1712200270917,-500.0,0.00054794,120]
[321455966,1712200270926,-661.04,0.00054794,120]
[321455967,1712200270937,-582.63935452,0.00054794,120]
[321455968,1712200270945,-961.33,0.00054794,120]
[321455969,1712200270955,-500.0,0.00054794,120]
[321455970,1712200270964,-1186.25,0.00054794,120]
[321455971,1712200270974,-500.0,0.00054794,120]
[321455972,1712200270984,-500.0,0.00054794,120]
[321455973,1712200270992,-1011.46,0.00054794,120]
[321455974,1712200271002,-664.68,0.00054794,120]
[321455975,1712200271011,-500.0,0.00054794,120]
[321455976,1712200271020,-534.04367109,0.00054794,120]
[321455977,1712200271029,-500.0,0.00054794,120]
[321455978,1712200271039,-518.45396783,0.00054794,120]
[321455979,1712200271048,-504.63331716,0.00054794,120]
[321455980,1712200271056,-500.0,0.00054794,120]
[321455981,1712200271066,-500.0,0.00054794,120]
[321455982,1712200271076,-500.0,0.00054794,120]
[321455983,1712200271084,-500.0,0.00054794,120]
[321455984,1712200271094,-1280.05,0.00054794,120]
[321455985,1712200271103,-521.59560666,0.00054794,120]
[321455986,1712200271113,-500.0,0.00054794,120]
[321455987,1712200271122,-500.0,0.00054794,120]
[321455988,1712200271131,-500.0,0.00054794,120]
[321455989,1712200271140,-1040.16,0.00054794,120]
[321455990,1712200271150,-502.33647914,0.00054794,120]
[321455991,1712200271159,-500.0,0.00054794,120]
[321455992,1712200271168,-500.0,0.00054794,120]
[321455993,1712200271178,-500.0,0.00054794,120]
[321455994,1712200271187,-861.11,0.00054794,120]
[321455995,1712200271197,-500.0,0.00054794,120]
[321455996,1712200271206,-500.0,0.00054794,120]
[321455997,1712200271216,-500.0,0.00054794,120]
[321455998,1712200271225,-607.47332015,0.00054794,120]
[321455999,1712200271235,-500.0,0.00054794,120]
[321456000,1712200271245,-1456.17,0.00054794,120]
[321456001,1712200271255,-340.729012,0.00054794,120]
[321456002,1712200271265,-517.583001,0.00054794,120]
[321456003,1712200271275,-554.95,0.00054794,120]
[321456004,1712200271284,-500.0,0.00054794,120]
[321456005,1712200271294,-188.36096139,0.00054794,120]
[321456006,1712200271304,-340.729012,0.00054794,120]
[321456007,1712200271315,-577.70300428,0.00054794,120]
[321456008,1712200271325,-529.92748873,0.00054794,120]
[321456009,1712200271335,-500.0,0.00054794,120]
[321456010,1712200271344,-500.0,0.00054794,120]
[321456011,1712200271354,-979.87,0.00054794,120]
[321456012,1712200271363,-243.43025839,0.00054794,120]
[321456013,1712200271372,-1376.36,0.00054794,120]
[321456014,1712200271381,-508.94550276,0.00054794,120]
[321456015,1712200271390,-688.56,0.00054794,120]
[321456016,1712200271400,-500.0,0.00054794,120]
[321456017,1712200271409,-798.23,0.00054794,120]
[321456018,1712200271419,-1326.85,0.00054794,120]
[321456019,1712200271429,-1138.59,0.00054794,120]
[321456020,1712200271438,-2000.0,0.00054794,30]
[321456021,1712200271448,-295.34697693,0.00054794,120]
[321456022,1712200271457,-500.0,0.00054794,120]
[321456023,1712200271467,-323.357105,0.00054794,120]
[321456024,1712200271478,-522.78798548,0.00054794,120]
[321456025,1712200271489,-151.0,0.00054794,120]
[321456026,1712200271499,-500.0,0.00054794,120]
[321456027,1712200271510,-500.0,0.00054794,120]
[321456028,1712200271521,-500.0,0.00054794,120]
[321456029,1712200271532,-323.357105,0.00054794,120]
[321456030,1712200271542,-507.34280891,0.00054794,120]
[321456031,1712200271553,-512.74,0.00054794,120]
[321456032,1712200271563,-966.92,0.00054794,120]
[321456033,1712200271574,-580.58,0.00054794,120]